[Event "Late-Titled-Tuesday-Blitz-March-05-2024"]
[Site "Chess.com"]
[Date "2024.03.05"]
[Round "3"]
[White "zverr1"]
[Black "SameerMujumdar"]
[Result "1-0"]
[WhiteElo "2599"]
[BlackElo "2436"]
[TimeControl "180+1"]
[EndTime "14:27:52 PST"]
[Termination "zverr1 won by resignation"]

1. e4 {[%clk 0:03:00.9]} 1... c5 {[%clk 0:02:59.3]} 2. Nf3 {[%clk 0:03:01]} 2...
d6 {[%clk 0:02:56]} 3. Nc3 {[%clk 0:03:00.9]} 3... Nf6 {[%clk 0:02:55.6]} 4. e5
{[%clk 0:03:01.1]} 4... dxe5 {[%clk 0:02:54.8]} 5. Nxe5 {[%clk 0:03:02]} 5... g6
{[%clk 0:02:47.8]} 6. Bc4 {[%clk 0:02:51]} 6... e6 {[%clk 0:02:47.9]} 7. Qf3
{[%clk 0:02:45]} 7... Bg7 {[%clk 0:02:45.8]} 8. Bb5+ {[%clk 0:02:44.3]} 8...
Nbd7 {[%clk 0:02:38.9]} 9. Bxd7+ {[%clk 0:02:21.4]} 9... Bxd7 {[%clk 0:02:38.2]}
10. Qxb7 {[%clk 0:02:21.9]} 10... O-O {[%clk 0:02:37.5]} 11. Nxd7 {[%clk
0:02:13.2]} 11... Nxd7 {[%clk 0:02:37.3]} 12. O-O {[%clk 0:02:13]} 12... c4
{[%clk 0:02:29.1]} 13. b3 {[%clk 0:02:12.7]} 13... Nc5 {[%clk 0:02:14.1]} 14.
Qb5 {[%clk 0:01:59.1]} 14... Ne4 {[%clk 0:02:12.4]} 15. Nxe4 {[%clk 0:01:23.1]}
15... Bxa1 {[%clk 0:02:11.2]} 16. Ba3 {[%clk 0:01:23.1]} 16... Bg7 {[%clk
0:02:07.5]} 17. Bxf8 {[%clk 0:01:20.9]} 17... Qxf8 {[%clk 0:02:08.4]} 18. Qxc4
{[%clk 0:01:18.3]} 18... Rc8 {[%clk 0:02:08.7]} 19. Qd3 {[%clk 0:01:15.8]} 19...
Qa3 {[%clk 0:02:09.2]} 20. Qd7 {[%clk 0:01:00.8]} 20... Rf8 {[%clk 0:02:07.1]}
21. Nc3 {[%clk 0:00:54.3]} 21... Bxc3 {[%clk 0:02:06.2]} 22. dxc3 {[%clk
0:00:55.2]} 22... Qxa2 {[%clk 0:02:06.9]} 23. Qd3 {[%clk 0:00:46]} 23... Rc8
{[%clk 0:02:05.9]} 24. c4 {[%clk 0:00:46.1]} 24... a5 {[%clk 0:02:05]} 25. h4
{[%clk 0:00:44.4]} 25... a4 {[%clk 0:02:03]} 26. Qc3 {[%clk 0:00:35.7]} 26...
Qa3 {[%clk 0:01:46]} 27. Ra1 {[%clk 0:00:33.8]} 27... Qe7 {[%clk 0:01:43.9]} 28.
Rxa4 {[%clk 0:00:30.4]} 28... Qxh4 {[%clk 0:01:44.6]} 29. c5 {[%clk 0:00:28.1]}
29... Qg5 {[%clk 0:01:41]} 30. Rc4 {[%clk 0:00:18.1]} 30... Qc1+ {[%clk
0:01:40.3]} 31. Kh2 {[%clk 0:00:18.8]} 31... Qh6+ {[%clk 0:01:41]} 32. Kg1
{[%clk 0:00:18.2]} 32... Qc1+ {[%clk 0:01:41]} 33. Kh2 {[%clk 0:00:18.9]} 33...
Qh6+ {[%clk 0:01:41.5]} 34. Qh3 {[%clk 0:00:19]} 34... Qg5 {[%clk 0:01:41.2]}
35. c6 {[%clk 0:00:12.1]} 35... Qe5+ {[%clk 0:01:41.6]} 36. Qg3 {[%clk
0:00:12.1]} 36... Qxg3+ {[%clk 0:01:37.9]} 37. Kxg3 {[%clk 0:00:12]} 37... Kf8
{[%clk 0:01:38.8]} 38. b4 {[%clk 0:00:12]} 38... Ke7 {[%clk 0:01:39.7]} 39. b5
{[%clk 0:00:12.6]} 39... Kd6 {[%clk 0:01:40.2]} 40. Ra4 {[%clk 0:00:06.3]} 40...
Rc7 {[%clk 0:01:39.2]} 41. Ra8 {[%clk 0:00:03.7]} 41... Kc5 {[%clk 0:01:38.8]}
42. Rb8 {[%clk 0:00:03.9]} 42... h5 {[%clk 0:01:36.1]} 43. Rb7 {[%clk
0:00:03.9]} 43... Rc8 {[%clk 0:01:33.7]} 44. c4 {[%clk 0:00:04]} 44... Kxc4
{[%clk 0:01:32.3]} 45. c7 {[%clk 0:00:04.1]} 45... Kc5 {[%clk 0:01:31]} 46. b6
{[%clk 0:00:04.5]} 46... Kc6 {[%clk 0:01:30.6]} 47. Rb8 {[%clk 0:00:04.6]} 47...
Kd7 {[%clk 0:01:30.8]} 48. Kf3 {[%clk 0:00:02.3]} 48... f6 {[%clk 0:01:28]} 49.
g3 {[%clk 0:00:02.6]} 49... g5 {[%clk 0:01:28.1]} 50. Ke4 {[%clk 0:00:03.1]}
50... f5+ {[%clk 0:01:22.5]} 51. Ke5 {[%clk 0:00:03.4]} 51... g4 {[%clk
0:01:21.3]} 52. Kf4 {[%clk 0:00:02.6]} 52... Rxc7 {[%clk 0:01:14.1]} 53. bxc7
{[%clk 0:00:02.6]} 53... Kxc7 {[%clk 0:01:14.9]} 54. Rh8 {[%clk 0:00:03.3]}
54... Kd6 {[%clk 0:01:15.8]} 55. Rxh5 {[%clk 0:00:03.9]} 55... e5+ {[%clk
0:01:16.7]} 56. Kxf5 {[%clk 0:00:04.4]} 56... Kd5 {[%clk 0:01:17.6]} 57. Kf6
{[%clk 0:00:04.5]} 57... Kd4 {[%clk 0:01:18]} 58. Rxe5 {[%clk 0:00:05.4]} 58...
Kd3 {[%clk 0:01:18.9]} 59. Re3+ {[%clk 0:00:05.5]} 59... Kd2 {[%clk 0:01:19.4]}
60. Kf5 {[%clk 0:00:06.4]} 60... Kd1 {[%clk 0:01:20.3]} 61. Kxg4 {[%clk
0:00:07.3]} 61... Kd2 {[%clk 0:01:21.2]} 62. Kf4 {[%clk 0:00:08.2]} 62... Kd1
{[%clk 0:01:22.1]} 63. g4 {[%clk 0:00:09.1]} 63... Kd2 {[%clk 0:01:23]} 64. g5
{[%clk 0:00:10]} 64... Kd1 {[%clk 0:01:23.9]} 65. g6 {[%clk 0:00:10.9]} 65...
Kd2 {[%clk 0:01:24.8]} 66. g7 {[%clk 0:00:11.8]} 1-0

[Event "Late-Titled-Tuesday-Blitz-March-05-2024"]
[Site "Chess.com"]
[Date "2024.03.05"]
[Round "3"]
[White "GotCheeseCheckers"]
[Black "Too_Stupid_To_Play"]
[Result "1-0"]
[WhiteElo "2509"]
[BlackElo "2260"]
[TimeControl "180+1"]
[EndTime "14:27:57 PST"]
[Termination "GotCheeseCheckers won on time"]

1. e4 {[%clk 0:02:50.9]} 1... c5 {[%clk 0:02:56.2]} 2. Nf3 {[%clk 0:02:39.1]}
2... e6 {[%clk 0:02:51.9]} 3. c3 {[%clk 0:02:36.2]} 3... d5 {[%clk 0:02:48.7]}
4. exd5 {[%clk 0:02:33.2]} 4... Qxd5 {[%clk 0:02:48.6]} 5. d4 {[%clk 0:02:33.5]}
5... Nc6 {[%clk 0:02:46.7]} 6. Be3 {[%clk 0:02:32.9]} 6... g6 {[%clk 0:02:36]}
7. dxc5 {[%clk 0:02:32.1]} 7... Qxd1+ {[%clk 0:02:31.8]} 8. Kxd1 {[%clk
0:02:33]} 8... Nge7 {[%clk 0:02:24.6]} 9. b4 {[%clk 0:02:28.2]} 9... Nd5 {[%clk
0:02:23.8]} 10. Bb5 {[%clk 0:02:26.2]} 10... Bd7 {[%clk 0:02:23]} 11. Bd4 {[%clk
0:02:18.8]} 11... Nxd4 {[%clk 0:02:11.7]} 12. Nxd4 {[%clk 0:02:12.8]} 12... Bxb5
{[%clk 0:01:57.8]} 13. Nxb5 {[%clk 0:02:13.7]} 13... O-O-O {[%clk 0:01:57.8]}
14. Kc2 {[%clk 0:02:07.9]} 14... a6 {[%clk 0:01:57.1]} 15. N5a3 {[%clk
0:02:08.5]} 15... Nf4 {[%clk 0:01:57]} 16. Nc4 {[%clk 0:02:01.8]} 16... Nxg2
{[%clk 0:01:51.5]} 17. Nbd2 {[%clk 0:02:02.4]} 17... Nf4 {[%clk 0:01:46.4]} 18.
Ne4 {[%clk 0:02:00]} 18... Kc7 {[%clk 0:01:45.3]} 19. Ned6 {[%clk 0:01:54.6]}
19... Bxd6 {[%clk 0:01:34]} 20. cxd6+ {[%clk 0:01:55.5]} 20... Kb8 {[%clk
0:01:27.5]} 21. Rad1 {[%clk 0:01:52.6]} 21... Nd5 {[%clk 0:01:22]} 22. Ne5
{[%clk 0:01:48.4]} 22... Rhf8 {[%clk 0:01:20.5]} 23. c4 {[%clk 0:01:39.8]} 23...
Nxb4+ {[%clk 0:01:18.4]} 24. Kc3 {[%clk 0:01:39]} 24... f6 {[%clk 0:00:58.6]}
25. Kxb4 {[%clk 0:01:10.6]} 25... fxe5 {[%clk 0:00:58]} 26. Rhe1 {[%clk
0:01:10.8]} 26... Rxf2 {[%clk 0:00:31.7]} 27. Rxe5 {[%clk 0:01:06.9]} 27... Rxa2
{[%clk 0:00:32.1]} 28. Rxe6 {[%clk 0:00:57.2]} 28... Rxh2 {[%clk 0:00:31.6]} 29.
Kc5 {[%clk 0:00:45.6]} 29... Rc2 {[%clk 0:00:07.3]} 30. Kd5 {[%clk 0:00:25.1]}
30... b6 {[%clk 0:00:02.7]} 31. Rb1 {[%clk 0:00:24]} 31... b5 {[%clk 0:00:01.5]}
32. cxb5 {[%clk 0:00:21.8]} 32... Rd2+ {[%clk 0:00:01.8]} 33. Kc6 {[%clk
0:00:21.5]} 33... Rc2+ {[%clk 0:00:01]} 34. Kb6 {[%clk 0:00:21]} 1-0

[Event "Late-Titled-Tuesday-Blitz-March-05-2024"]
[Site "Chess.com"]
[Date "2024.03.05"]
[Round "3"]
[White "1g60-1"]
[Black "annacramling"]
[Result "0-1"]
[WhiteElo "2316"]
[BlackElo "2075"]
[TimeControl "180+1"]
[EndTime "14:27:57 PST"]
[Termination "annacramling won by resignation"]

1. e4 {[%clk 0:03:00.9]} 1... c5 {[%clk 0:03:00.1]} 2. d4 {[%clk 0:03:01.2]}
2... cxd4 {[%clk 0:03:00]} 3. c3 {[%clk 0:03:01.9]} 3... Nf6 {[%clk 0:02:58.8]}
4. e5 {[%clk 0:03:02]} 4... Nd5 {[%clk 0:02:59.1]} 5. cxd4 {[%clk 0:03:02.6]}
5... e6 {[%clk 0:02:58.3]} 6. Nc3 {[%clk 0:03:02.4]} 6... Nxc3 {[%clk
0:02:58.5]} 7. bxc3 {[%clk 0:03:03.3]} 7... Qc7 {[%clk 0:02:56.6]} 8. Bd2 {[%clk
0:03:02.9]} 8... d6 {[%clk 0:02:56.7]} 9. exd6 {[%clk 0:03:03.8]} 9... Bxd6
{[%clk 0:02:57.1]} 10. Nf3 {[%clk 0:03:04.5]} 10... Nc6 {[%clk 0:02:56.4]} 11.
Bd3 {[%clk 0:03:05.2]} 11... h6 {[%clk 0:02:49.8]} 12. O-O {[%clk 0:03:01.9]}
12... O-O {[%clk 0:02:49.9]} 13. Qc1 {[%clk 0:03:02.2]} 13... f5 {[%clk
0:02:11.8]} 14. c4 {[%clk 0:02:55.9]} 14... Be7 {[%clk 0:01:33.1]} 15. Re1
{[%clk 0:02:42.9]} 15... Bf6 {[%clk 0:01:32.7]} 16. Bc3 {[%clk 0:02:34.9]} 16...
Qd6 {[%clk 0:01:14.9]} 17. Qb2 {[%clk 0:02:31.1]} 17... Rd8 {[%clk 0:01:09.8]}
18. d5 {[%clk 0:02:17.3]} 18... exd5 {[%clk 0:01:08.9]} 19. cxd5 {[%clk
0:02:17.6]} 19... Bxc3 {[%clk 0:00:57.5]} 20. Qxc3 {[%clk 0:02:15.4]} 20... Ne7
{[%clk 0:00:50.8]} 21. Rad1 {[%clk 0:02:09.4]} 21... Kh8 {[%clk 0:00:44.8]} 22.
Bc4 {[%clk 0:02:05.6]} 22... Bd7 {[%clk 0:00:38.9]} 23. Ne5 {[%clk 0:02:03.9]}
23... Be8 {[%clk 0:00:37.3]} 24. Bb3 {[%clk 0:01:51.8]} 24... Rac8 {[%clk
0:00:36.5]} 25. Qg3 {[%clk 0:01:50]} 25... Qf6 {[%clk 0:00:25.4]} 26. h4 {[%clk
0:01:47]} 26... f4 {[%clk 0:00:25]} 27. Qh3 {[%clk 0:01:36.7]} 27... Rc5 {[%clk
0:00:16.7]} 28. Ng4 {[%clk 0:01:29.6]} 28... Qd6 {[%clk 0:00:11]} 29. Re6 {[%clk
0:01:27.6]} 29... Qd7 {[%clk 0:00:07.5]} 30. Nxh6 {[%clk 0:01:27.9]} 30... Nxd5
{[%clk 0:00:02.7]} 31. Bxd5 {[%clk 0:01:20.9]} 31... Rxd5 {[%clk 0:00:03.6]} 32.
Rxd5 {[%clk 0:01:18.4]} 32... Qxd5 {[%clk 0:00:04.5]} 33. Rxe8+ {[%clk
0:01:18.5]} 33... Rxe8 {[%clk 0:00:04.4]} 34. Nf7+ {[%clk 0:01:17.5]} 34... Qxf7
{[%clk 0:00:04.2]} 35. Qg4 {[%clk 0:01:17.8]} 35... Kg8 {[%clk 0:00:04.4]} 36.
h5 {[%clk 0:01:17.9]} 36... Qe6 {[%clk 0:00:04.6]} 37. Qg5 {[%clk 0:01:16.8]}
37... Qe1+ {[%clk 0:00:04.5]} 38. Kh2 {[%clk 0:01:17.3]} 38... Qe5 {[%clk
0:00:04.8]} 39. Qg6 {[%clk 0:01:14.5]} 39... f3+ {[%clk 0:00:05]} 40. g3 {[%clk
0:01:15.2]} 40... Qe6 {[%clk 0:00:02.6]} 41. Qg5 {[%clk 0:01:14.2]} 41... Rf8
{[%clk 0:00:02.4]} 42. a4 {[%clk 0:01:12.9]} 42... Qh6 {[%clk 0:00:02.6]} 43.
Qg4 {[%clk 0:01:12.4]} 43... Qb6 {[%clk 0:00:02.3]} 44. a5 {[%clk 0:01:11.2]}
44... Qxf2+ {[%clk 0:00:02.2]} 45. Kh3 {[%clk 0:01:10.1]} 45... Qf1+ {[%clk
0:00:02.8]} 46. Kh4 {[%clk 0:01:11]} 46... Qh1+ {[%clk 0:00:02.7]} 47. Kg5
{[%clk 0:01:11.5]} 47... Qc1+ {[%clk 0:00:02.7]} 48. Kh4 {[%clk 0:01:12]} 48...
Qc7 {[%clk 0:00:01.9]} 49. Qc4+ {[%clk 0:01:08.2]} 49... Qf7 {[%clk 0:00:01.4]}
50. Qg4 {[%clk 0:01:07.9]} 50... Qf6+ {[%clk 0:00:02]} 51. Kh3 {[%clk
0:01:08.4]} 51... f2 {[%clk 0:00:02.6]} 52. Qc4+ {[%clk 0:01:07.7]} 52... Qf7
{[%clk 0:00:03.1]} 53. Qf1 {[%clk 0:01:07.3]} 53... Qxh5+ {[%clk 0:00:03.6]} 54.
Kg2 {[%clk 0:01:07.7]} 54... Qd5+ {[%clk 0:00:04.3]} 55. Kh2 {[%clk 0:01:07.9]}
55... Qe4 {[%clk 0:00:04.7]} 56. Qe2 {[%clk 0:01:07.6]} 56... Qxe2 {[%clk
0:00:04.9]} 0-1

[Event "Late-Titled-Tuesday-Blitz-March-05-2024"]
[Site "Chess.com"]
[Date "2024.03.05"]
[Round "3"]
[White "baag"]
[Black "chess94cu"]
[Result "1-0"]
[WhiteElo "2850"]
[BlackElo "2652"]
[TimeControl "180+1"]
[EndTime "14:27:58 PST"]
[Termination "baag won on time"]

1. c4 {[%clk 0:03:00.9]} 1... Nf6 {[%clk 0:02:59.3]} 2. g3 {[%clk 0:03:01]} 2...
e6 {[%clk 0:02:58.9]} 3. Bg2 {[%clk 0:03:01.3]} 3... d5 {[%clk 0:02:59.8]} 4.
Nf3 {[%clk 0:03:01.8]} 4... Be7 {[%clk 0:03:00.1]} 5. O-O {[%clk 0:03:02.3]}
5... O-O {[%clk 0:03:00.7]} 6. d4 {[%clk 0:03:03.1]} 6... dxc4 {[%clk
0:03:00.5]} 7. Qc2 {[%clk 0:03:03.8]} 7... a6 {[%clk 0:02:59.7]} 8. a4 {[%clk
0:03:04.6]} 8... Bd7 {[%clk 0:02:59]} 9. Rd1 {[%clk 0:03:05.3]} 9... Bc6 {[%clk
0:02:59.1]} 10. Nc3 {[%clk 0:03:06]} 10... Bxf3 {[%clk 0:02:33.7]} 11. Bxf3
{[%clk 0:03:06.9]} 11... Nc6 {[%clk 0:02:34.1]} 12. Bxc6 {[%clk 0:03:07.7]}
12... bxc6 {[%clk 0:02:33.8]} 13. Bg5 {[%clk 0:03:08.5]} 13... Rb8 {[%clk
0:02:30.8]} 14. Rac1 {[%clk 0:03:01.6]} 14... Nd5 {[%clk 0:02:17.1]} 15. Bxe7
{[%clk 0:03:02.5]} 15... Qxe7 {[%clk 0:02:17.3]} 16. Ne4 {[%clk 0:03:02.7]}
16... Rb4 {[%clk 0:02:17.1]} 17. Nc5 {[%clk 0:02:55.2]} 17... a5 {[%clk
0:02:12.1]} 18. Na6 {[%clk 0:02:47.4]} 18... Rb6 {[%clk 0:02:10.8]} 19. Qxc4
{[%clk 0:02:46.5]} 19... Rxb2 {[%clk 0:02:10.2]} 20. e4 {[%clk 0:02:41.7]} 20...
Nf6 {[%clk 0:01:41.1]} 21. Qxc6 {[%clk 0:02:38.9]} 21... Ng4 {[%clk 0:01:37]}
22. Rc2 {[%clk 0:02:31.6]} 22... Qa3 {[%clk 0:01:14.3]} 23. h3 {[%clk
0:02:11.1]} 23... Nf6 {[%clk 0:00:44.2]} 24. Rxb2 {[%clk 0:01:28.4]} 24... Qxb2
{[%clk 0:00:45.1]} 25. Nc5 {[%clk 0:01:28.7]} 25... h5 {[%clk 0:00:40.4]} 26.
Qxc7 {[%clk 0:01:24.2]} 26... Qe2 {[%clk 0:00:40.9]} 27. Rf1 {[%clk 0:01:10.6]}
27... Nxe4 {[%clk 0:00:39.4]} 28. Nxe4 {[%clk 0:01:11.3]} 28... Qxe4 {[%clk
0:00:39.9]} 29. Qxa5 {[%clk 0:01:11.3]} 29... Qxd4 {[%clk 0:00:40.1]} 30. h4
{[%clk 0:01:11.6]} 30... g6 {[%clk 0:00:35.3]} 31. Qb5 {[%clk 0:01:11]} 31...
Ra8 {[%clk 0:00:33.4]} 32. a5 {[%clk 0:01:09.4]} 32... Kg7 {[%clk 0:00:27.2]}
33. a6 {[%clk 0:01:04.4]} 33... Qd5 {[%clk 0:00:16.4]} 34. Qxd5 {[%clk
0:00:55.4]} 34... exd5 {[%clk 0:00:17.3]} 35. Ra1 {[%clk 0:00:56.1]} 35... Ra7
{[%clk 0:00:16.8]} 36. Kg2 {[%clk 0:00:56.5]} 36... Kf6 {[%clk 0:00:17.6]} 37.
Kf3 {[%clk 0:00:57.2]} 37... Ke5 {[%clk 0:00:18.3]} 38. Ke3 {[%clk 0:00:58]}
38... f6 {[%clk 0:00:16.3]} 39. Ra5 {[%clk 0:00:56.6]} 39... g5 {[%clk
0:00:16.3]} 40. Kd3 {[%clk 0:00:53]} 40... gxh4 {[%clk 0:00:15.4]} 41. gxh4
{[%clk 0:00:53.9]} 41... f5 {[%clk 0:00:15.8]} 42. Ke3 {[%clk 0:00:53.1]} 42...
Ke6 {[%clk 0:00:05.2]} 43. Kd4 {[%clk 0:00:51.4]} 43... f4 {[%clk 0:00:05.6]}
44. f3 {[%clk 0:00:52.1]} 44... Kd6 {[%clk 0:00:01.8]} 45. Rxd5+ {[%clk
0:00:51.2]} 45... Kc6 {[%clk 0:00:01.9]} 46. Rxh5 {[%clk 0:00:51.9]} 1-0

[Event "Late-Titled-Tuesday-Blitz-March-05-2024"]
[Site "Chess.com"]
[Date "2024.03.05"]
[Round "3"]
[White "Kostukov_Alex"]
[Black "morte-negra"]
[Result "0-1"]
[WhiteElo "2331"]
[BlackElo "2061"]
[TimeControl "180+1"]
[EndTime "14:27:58 PST"]
[Termination "morte-negra won by checkmate"]

1. g3 {[%clk 0:03:00.4]} 1... Nf6 {[%clk 0:02:54.7]} 2. Bg2 {[%clk 0:03:00.4]}
2... g6 {[%clk 0:02:53.1]} 3. c4 {[%clk 0:02:58.4]} 3... Bg7 {[%clk 0:02:53]} 4.
Nf3 {[%clk 0:02:59]} 4... d5 {[%clk 0:02:52.7]} 5. O-O {[%clk 0:02:55]} 5... c5
{[%clk 0:02:53.2]} 6. cxd5 {[%clk 0:02:54.1]} 6... Nxd5 {[%clk 0:02:52.5]} 7.
Nc3 {[%clk 0:02:54.7]} 7... Nc7 {[%clk 0:02:50.4]} 8. b3 {[%clk 0:02:40]} 8...
Nc6 {[%clk 0:02:49.5]} 9. Bb2 {[%clk 0:02:40]} 9... O-O {[%clk 0:02:49.4]} 10.
Rc1 {[%clk 0:02:38.3]} 10... Rb8 {[%clk 0:01:42.9]} 11. d3 {[%clk 0:02:29.7]}
11... b6 {[%clk 0:01:42.8]} 12. Qd2 {[%clk 0:02:28.2]} 12... Bb7 {[%clk
0:01:42.9]} 13. Rfd1 {[%clk 0:02:25.6]} 13... Nd4 {[%clk 0:01:36.2]} 14. Nxd4
{[%clk 0:02:23.3]} 14... Bxg2 {[%clk 0:01:34.7]} 15. Kxg2 {[%clk 0:02:14.1]}
15... cxd4 {[%clk 0:01:33.8]} 16. Ne4 {[%clk 0:02:11]} 16... Nd5 {[%clk
0:01:33.4]} 17. Rc4 {[%clk 0:02:00.3]} 17... e5 {[%clk 0:01:32.2]} 18. Rdc1
{[%clk 0:01:51.1]} 18... f5 {[%clk 0:01:30.8]} 19. Ng5 {[%clk 0:01:50.9]} 19...
Qe7 {[%clk 0:01:23]} 20. Rc6 {[%clk 0:01:40.4]} 20... h6 {[%clk 0:01:19.5]} 21.
Ne6 {[%clk 0:01:36.8]} 21... Rf6 {[%clk 0:01:08.5]} 22. Nxg7 {[%clk 0:01:32]}
22... Kxg7 {[%clk 0:01:09]} 23. Qc2 {[%clk 0:01:13.7]} 23... f4 {[%clk
0:00:48.8]} 24. Rxf6 {[%clk 0:01:05.7]} 24... Qxf6 {[%clk 0:00:48.7]} 25. Qc6
{[%clk 0:01:02.3]} 25... Rd8 {[%clk 0:00:48.8]} 26. Qxf6+ {[%clk 0:00:58.6]}
26... Kxf6 {[%clk 0:00:47.9]} 27. Kf3 {[%clk 0:00:58.1]} 27... g5 {[%clk
0:00:46.6]} 28. Rc6+ {[%clk 0:00:54.8]} 28... Kg7 {[%clk 0:00:43.3]} 29. Ke4
{[%clk 0:00:51.1]} 29... Ne7 {[%clk 0:00:25]} 30. Rc7 {[%clk 0:00:43.1]} 30...
Kf6 {[%clk 0:00:23.9]} 31. Ba3 {[%clk 0:00:39.8]} 31... Nd5 {[%clk 0:00:09.6]}
32. Rc6+ {[%clk 0:00:37.3]} 32... Kf7 {[%clk 0:00:09.1]} 33. Kxe5 {[%clk
0:00:37]} 33... fxg3 {[%clk 0:00:03.4]} 34. hxg3 {[%clk 0:00:34.9]} 34... Nc3
{[%clk 0:00:02.7]} 35. Rxh6 {[%clk 0:00:27.2]} 35... Rd5# {[%clk 0:00:01]} 0-1

[Event "Late-Titled-Tuesday-Blitz-March-05-2024"]
[Site "Chess.com"]
[Date "2024.03.05"]
[Round "3"]
[White "Abund"]
[Black "DonJuan_34"]
[Result "1-0"]
[WhiteElo "2801"]
[BlackElo "2462"]
[TimeControl "180+1"]
[EndTime "14:27:59 PST"]
[Termination "Abund won by resignation"]

1. e4 {[%clk 0:03:00.9]} 1... e6 {[%clk 0:03:00.1]} 2. d4 {[%clk 0:03:01]} 2...
d5 {[%clk 0:03:00.6]} 3. Nd2 {[%clk 0:03:01.8]} 3... Nf6 {[%clk 0:02:54.9]} 4.
e5 {[%clk 0:03:01.9]} 4... Nfd7 {[%clk 0:02:55.1]} 5. c3 {[%clk 0:03:01.1]} 5...
c5 {[%clk 0:02:55.6]} 6. f4 {[%clk 0:03:01.6]} 6... Nc6 {[%clk 0:02:53.3]} 7.
Ndf3 {[%clk 0:03:01.8]} 7... f6 {[%clk 0:02:49.4]} 8. Bd3 {[%clk 0:03:01.2]}
8... cxd4 {[%clk 0:02:46.1]} 9. cxd4 {[%clk 0:03:00.8]} 9... Bb4+ {[%clk
0:02:41.3]} 10. Bd2 {[%clk 0:02:57.5]} 10... Qa5 {[%clk 0:02:36.5]} 11. Ne2
{[%clk 0:02:54.4]} 11... O-O {[%clk 0:02:30.7]} 12. a3 {[%clk 0:02:47]} 12...
Bxd2+ {[%clk 0:02:29.2]} 13. Qxd2 {[%clk 0:02:47.5]} 13... Qxd2+ {[%clk
0:02:26.1]} 14. Kxd2 {[%clk 0:02:48.4]} 14... f5 {[%clk 0:02:08.2]} 15. b4
{[%clk 0:02:40.5]} 15... Nb6 {[%clk 0:02:06.6]} 16. Rac1 {[%clk 0:02:38.4]}
16... Bd7 {[%clk 0:02:05.6]} 17. h3 {[%clk 0:02:31]} 17... a6 {[%clk 0:02:00.4]}
18. g4 {[%clk 0:02:30.1]} 18... g6 {[%clk 0:01:46.7]} 19. Rhg1 {[%clk
0:02:13.8]} 19... Kh8 {[%clk 0:01:43.3]} 20. Rg2 {[%clk 0:02:06.5]} 20... Rac8
{[%clk 0:01:31.6]} 21. gxf5 {[%clk 0:01:53]} 21... gxf5 {[%clk 0:01:31.2]} 22.
Rcg1 {[%clk 0:01:45.5]} 22... Be8 {[%clk 0:01:10.8]} 23. Ng3 {[%clk 0:01:00.8]}
23... h6 {[%clk 0:00:53.7]} 24. Rc1 {[%clk 0:00:49.6]} 24... Ne7 {[%clk
0:00:44.2]} 25. Rc5 {[%clk 0:00:41.6]} 25... Nd7 {[%clk 0:00:36.6]} 26. Rxc8
{[%clk 0:00:39]} 26... Nxc8 {[%clk 0:00:37.5]} 27. Ke3 {[%clk 0:00:30.1]} 27...
Ndb6 {[%clk 0:00:32.7]} 28. Nd2 {[%clk 0:00:26.6]} 28... Bb5 {[%clk 0:00:30.8]}
29. Nh5 {[%clk 0:00:25.5]} 29... Bxd3 {[%clk 0:00:27.9]} 30. Kxd3 {[%clk
0:00:24.3]} 30... Nd7 {[%clk 0:00:26.8]} 31. Rg6 {[%clk 0:00:23.6]} 31... Re8
{[%clk 0:00:17.7]} 32. Rxh6+ {[%clk 0:00:23.9]} 32... Kg8 {[%clk 0:00:18.2]} 33.
Rg6+ {[%clk 0:00:24.7]} 33... Kh8 {[%clk 0:00:16.7]} 34. Rg7 {[%clk 0:00:22.9]}
34... Ncb6 {[%clk 0:00:16.2]} 35. Nf3 {[%clk 0:00:22.3]} 35... Nf8 {[%clk
0:00:14]} 36. Ng5 {[%clk 0:00:19.3]} 1-0

[Event "Late-Titled-Tuesday-Blitz-March-05-2024"]
[Site "Chess.com"]
[Date "2024.03.05"]
[Round "3"]
[White "thesupera12"]
[Black "larsmandreassen"]
[Result "1-0"]
[WhiteElo "2497"]
[BlackElo "2235"]
[TimeControl "180+1"]
[EndTime "14:28:02 PST"]
[Termination "thesupera12 won on time"]

1. Nc3 {[%clk 0:02:57.6]} 1... d5 {[%clk 0:02:59]} 2. Nf3 {[%clk 0:02:55.7]}
2... d4 {[%clk 0:02:58.2]} 3. Ne4 {[%clk 0:02:55.9]} 3... Bf5 {[%clk 0:02:56.5]}
4. Ng3 {[%clk 0:02:55.8]} 4... Bg6 {[%clk 0:02:57]} 5. c3 {[%clk 0:02:54.3]}
5... c5 {[%clk 0:02:56.2]} 6. cxd4 {[%clk 0:02:54]} 6... cxd4 {[%clk 0:02:57.1]}
7. d3 {[%clk 0:02:45.8]} 7... Nc6 {[%clk 0:02:57.1]} 8. h4 {[%clk 0:02:43.3]}
8... h6 {[%clk 0:02:56.5]} 9. Qa4 {[%clk 0:02:41.9]} 9... Qd7 {[%clk 0:02:41.3]}
10. Bd2 {[%clk 0:02:20.8]} 10... e5 {[%clk 0:02:38.3]} 11. O-O-O {[%clk
0:02:20.2]} 11... Nf6 {[%clk 0:02:32.5]} 12. Kb1 {[%clk 0:02:19]} 12... Bd6
{[%clk 0:02:29.3]} 13. e3 {[%clk 0:02:13.8]} 13... dxe3 {[%clk 0:02:17.4]} 14.
Bxe3 {[%clk 0:02:13.7]} 14... O-O {[%clk 0:02:16.6]} 15. Ka1 {[%clk 0:02:12.4]}
15... a6 {[%clk 0:02:13.7]} 16. d4 {[%clk 0:02:12]} 16... b5 {[%clk 0:02:08]}
17. Qb3 {[%clk 0:02:09.4]} 17... e4 {[%clk 0:01:48]} 18. Ne5 {[%clk 0:01:53.2]}
18... Na5 {[%clk 0:01:09.7]} 19. Qc2 {[%clk 0:01:38.3]} 19... Bxe5 {[%clk
0:00:54.2]} 20. dxe5 {[%clk 0:01:38.1]} 20... Nd5 {[%clk 0:00:54.7]} 21. Qd2
{[%clk 0:01:31.1]} 21... Qc7 {[%clk 0:00:26.2]} 22. Rc1 {[%clk 0:01:17.6]} 22...
Qd8 {[%clk 0:00:19.5]} 23. Rd1 {[%clk 0:00:58.9]} 23... Qc7 {[%clk 0:00:19.4]}
24. Rc1 {[%clk 0:00:59.5]} 24... Qd8 {[%clk 0:00:19.6]} 25. Be2 {[%clk
0:01:00.2]} 25... Nxe3 {[%clk 0:00:16.9]} 26. Qxe3 {[%clk 0:01:01.1]} 26... Rc8
{[%clk 0:00:13.7]} 27. Nxe4 {[%clk 0:01:00.8]} 27... Qd5 {[%clk 0:00:12.1]} 28.
Nc3 {[%clk 0:00:57.6]} 28... Qxg2 {[%clk 0:00:11.4]} 29. Rhg1 {[%clk 0:00:53.4]}
29... Qb7 {[%clk 0:00:09.9]} 30. h5 {[%clk 0:00:53.4]} 30... Bh7 {[%clk
0:00:07.6]} 31. Qxh6 {[%clk 0:00:52.7]} 31... f6 {[%clk 0:00:06.8]} 32. exf6
{[%clk 0:00:49]} 32... Rxf6 {[%clk 0:00:06.6]} 33. Qxf6 {[%clk 0:00:48.4]} 33...
b4 {[%clk 0:00:07]} 34. Rxg7+ {[%clk 0:00:42.7]} 34... Qxg7 {[%clk 0:00:06.2]}
35. Qe6+ {[%clk 0:00:43.3]} 35... Qf7 {[%clk 0:00:04.2]} 36. Qxc8+ {[%clk
0:00:43.9]} 36... Kg7 {[%clk 0:00:04.9]} 37. Rg1+ {[%clk 0:00:43.4]} 37... Kh6
{[%clk 0:00:04.6]} 38. Qc5 {[%clk 0:00:36.1]} 38... bxc3 {[%clk 0:00:03.3]} 39.
Qe3+ {[%clk 0:00:36.1]} 1-0